Cogmind - Beta 15 @@@ ROGUE MODE // 2025.10.05 @ 20:51:32 Player: DietSnapple Result: Self-destructed Performance ------------- Evolutions (2) 1000 Regions Visited (4) 800 Robots Destroyed (18) 90 Value Destroyed (403) 403 Prototype IDs (1) 20 Alien Tech Used (0) 0 Bonus (0) 0 TOTAL SCORE: 2313 Bonus ------- None Cogmind --------- Core Integrity 363/550 Matter 190/300 Energy 68/100 System Corruption 2% Temperature Cool (9) Movement Core (50) Location -8/Materials Parts ------- > --- POWER (1) -------- (None) > --- PROPULSION (4) --- (None) > --- UTILITY (4) ------ Signal Interpreter Advanced Terrain Scan Processor Hacking Suite > --- WEAPON (2) ------- (None) > --- INVENTORY (5) ---- (None) Peak State ------------ > --- POWER ------------ Light Ion Engine > --- PROPULSION ------- Aerolev Unit Flight Unit Flight Unit Flight Unit > --- UTILITY ---------- Weight Redist. System Signal Interpreter Hacking Suite > --- WEAPON ----------- Assault Cannon > --- INVENTORY -------- Flight Unit Advanced Terrain Scan Processor [Rating: 17] Favorites ----------- Power Light Ion Engine Engine Light Ion Engine Propulsion Flight Unit Leg Aluminum Leg Hover Unit Hover Unit Flight Unit Flight Unit Utility Seismic Detector Device Seismic Detector Storage Small Storage Unit Processor Signal Interpreter Hackware Hacking Suite Weapon Assault Rifle Energy Cannon EM Pulse Cannon Ballistic Gun Assault Rifle Ballistic Cannon Assault Cannon Build | -11 -10 -10 -9 -8 ------- Run | Yrd Mat Min Mat Mat Slots Evolved 4 | . . . 2 2 Power . | . . . . . Propulsion 2 | . . . 1 1 Utility 2 | . . . 1 1 Weapon . | . . . . . Parts Attached 30 | 6 3 4 5 12 Power 3 | 1 . 1 . 1 Engine 3 | 1 . 1 . 1 Core . | . . . . . Reactor . | . . . . . Propulsion 14 | 2 2 2 1 7 Treads . | . . . . . Leg 2 | 2 . . . . Wheel . | . . . . . Hover 3 | . 2 . . 1 Flight 9 | . . 2 1 6 Utility 7 | 1 1 . 3 2 Device 3 | . 1 . 2 . Storage 1 | 1 . . . . Processor 2 | . . . 1 1 Hackware 1 | . . . . 1 Protection . | . . . . . Artifact . | . . . . . Weapon 6 | 2 . 1 1 2 Energy Gun . | . . . . . Energy Cannon 1 | . . . . 1 Ballistic Gun 3 | 2 . . 1 . Ballistic Cannon 2 | . . 1 . 1 Launcher . | . . . . . Special Weapon . | . . . . . Impact Weapon . | . . . . . Slashing Weapon . | . . . . . Piercing Weapon . | . . . . . Special Melee Weapon . | . . . . . Unidentified Prototypes 1 | . . . . 1 Parts Lost 15 | . . . 3 12 Power 2 | . . . 1 1 Propulsion 8 | . . . . 8 Utility 2 | . . . . 2 Weapon 3 | . . . 2 1 Highest Loss Streak 8 | . . . 2 8 To Critical Strikes . | . . . . . Average Backups 4 | . 3 6 4 3 Power . | . 1 . . . Propulsion 2 | . 1 3 2 1 Utility 1 | . . 2 2 1 Weapon . | . . . . . Tool/Special . | . . . . . Unused Backups 3 | . . 2 . 1 Power . | . . . . . Propulsion 2 | . . 2 . . Utility 1 | . . . . 1 Weapon . | . . . . . Tool/Special . | . . . . . Average Slot Usage (%) 85 | . 88 92 89 63 Engine 10 | . 14 13 7 4 Leg 2 | . 18 . . . Hover 7 | . 9 14 . . Flight 18 | . . 13 33 27 Device 14 | . 3 14 21 14 Storage 5 | . 14 7 . . Processor 4 | . . . 10 9 Ballistic Gun 19 | . 28 27 16 . Ballistic Cannon 1 | . . . . 6 Peak Build Rating 17 | 6 7 9 10 17 Average Rating 7 | 4 6 6 9 10 On Entrance 5 | . 6 7 6 7 Naked Turns . | . . . . . Heaviest Build 12 | 11 12 12 7 12 Greatest Support 20 | 20 20 12 18 16 Greatest Overweight (x) 3 | . 3 . . . Average Overweight (x) . | . . . . . Largest Inventory Capacity 8 | 8 8 8 5 5 Average Capacity 6 | 6 8 6 5 5 Most Carried 8 | 1 7 8 5 4 Average Carried 4 | . 3 6 4 2 Final Capacity 8 | 8 8 5 5 5 Final Carried 7 | 1 7 5 5 . Class Distribution -------------------- 97% | Mutant Dominant Class ---------------- Mutant | -10/Materials Mutant | -10/Mines Mutant | -9/Materials Mutant | -8/Materials Resources | -11 -10 -10 -9 -8 ----------- Run | Yrd Mat Min Mat Mat Matter Collected 611 | 222 112 108 99 70 Remotely . | . . . . . Salvage Created 424 | . 87 95 154 88 Parts 31 | . 1 9 19 2 Haulers Intercepted . | . . . . . Recyclers Shooed . | . . . . . Parts Field Recycled . | . . . . . Retrieved Matter . | . . . . . Parts Self-Destructed . | . . . . . Prevented . | . . . . . Kills | -11 -10 -10 -9 -8 ------- Run | Yrd Mat Min Mat Mat Combat Hostiles Destroyed 18 | . 2 6 6 4 Guns 14 | . 2 6 6 . Cannons 4 | . . . . 4 Classes Destroyed 4 | . 1 1 . 2 Swarmer 11 | . . 6 3 2 Grunt 5 | . 2 . 3 . Sentry 1 | . . . . 1 Hunter 1 | . . . . 1 Best Kill Streak 5 | . 2 3 5 4 Combat Bots Only 5 | . 2 3 5 4 Max Kills in Single Turn 1 | . 1 1 1 1 Gunslinging . | . . . . . Exploded . | . . . . . Melee . | . . . . . Uniques/NPCs Destroyed . | . . . . . Combat | -11 -10 -10 -9 -8 -------- Run | Yrd Mat Min Mat Mat Hostile Shots Fired 179 | . 18 25 40 96 Missed 75 | . 6 6 17 46 Hits 104 | . 12 19 23 50 Melee 8 | . . . . 8 Projectile 96 | . 12 19 23 42 AOE 2 | . . . . 2 Critical Strikes 9 | . 1 . 1 7 Damage Taken 1293 | . 175 164 278 676 Core 363 | . 47 59 70 187 Absorbed by Shields . | . . . . . Core Remaining (%) 79 | 100 . 57 82 . Volleys Fired 58 | . 11 12 19 16 Largest 2 | . 2 2 2 1 Hottest 40 | . 40 40 40 37 Shots Fired 99 | . 22 24 37 16 Gun 83 | . 22 24 37 . Cannon 16 | . . . . 16 Launcher . | . . . . . Special . | . . . . . Kinetic 99 | . 22 24 37 16 Thermal . | . . . . . Explosive . | . . . . . Electromagnetic . | . . . . . Robot Hit Streak 13 | . 13 2 10 6 Robot Miss Streak 3 | . 2 2 3 2 Penetration Max . | . . . . . Secondary Targets 2 | . . . 2 . Max Gunslinging Chain 1 | . . . 1 . Shots Hit Robots 62 | . 16 9 25 12 Core Hits 28 | . 5 7 12 4 Critical Kills . | . . . . . Critical Parts Destroyed . | . . . . . Critical Strikes 2 | . . . . 2 Blast 2 | . . . . 2 Melee Attacks . | . . . . . Impact . | . . . . . Slashing . | . . . . . Piercing . | . . . . . Sneak Attacks . | . . . . . Combat Hostiles . | . . . . . Follow-up Attacks . | . . . . . Damage Inflicted 798 | . 177 101 262 258 Guns 540 | . 177 101 262 . Cannons 258 | . . . . 258 Explosions . | . . . . . Melee . | . . . . . Ramming . | . . . . . Kinetic 798 | . 177 101 262 258 Thermal . | . . . . . Explosive . | . . . . . Electromagnetic . | . . . . . Impact . | . . . . . Slashing . | . . . . . Piercing . | . . . . . Highest Corruption 2 | . . . . 2 Average Corruption 2 | . . . . 2 Corruption Purged . | . . . . . Corruption Blocked . | . . . . . Overload Shots . | . . . . . Overflow Damage 12 | . . . . 12 Projectiles 12 | . . . . 12 Explosions . | . . . . . Melee . | . . . . . Knockbacks 4 | . . . . 4 Impact . | . . . . . Kinetic 4 | . . . . 4 Secondary . | . . . . . Self-Inflicted Damage . | . . . . . Shots . | . . . . . Rammed . | . . . . . Targets Rammed . | . . . . . Kicked . | . . . . . Crushed . | . . . . . Highest Temperature 39 | . 36 8 39 8 Average Temperature 9 | . 18 3 10 4 Received Heat Transfer 450 | . 117 15 165 153 Siege Activations . | . . . . . Martial Activations . | . . . . . Shielding Activations . | . . . . . Robots Disrupted . | . . . . . Combat Hostiles . | . . . . . Robots Corrupted . | . . . . . Combat Hostiles . | . . . . . Parts Fried . | . . . . . Impact Corruptions . | . . . . . Robots Melted . | . . . . . Combat Hostiles . | . . . . . Parts Melted . | . . . . . Heat Transferred . | . . . . . Parts Sabotaged . | . . . . . Parts Stolen . | . . . . . Parts Stripped . | . . . . . Power Chain Reactions . | . . . . . Alert | -11 -10 -10 -9 -8 ------- Run | Yrd Mat Min Mat Mat Maximum Alert Level . | . . . . . Low Security (%) 100 | 100 100 100 100 100 Level 1 . | . . . . . Level 2 . | . . . . . Level 3 . | . . . . . Level 4 . | . . . . . Level 5 . | . . . . . High Security . | . . . . . Max Security . | . . . . . Peak Influence 190 | . 40 90 90 190 Initial 22 | . . . . 22 Average 36 | . 9 24 45 88 Influence Increases 725 | . 57 140 205 323 Destroy 0b10 Robot/C 360 | . 40 120 120 80 Destroy Leader 70 | . 10 20 10 30 Successful Hack 7 | . 7 . . . Disable Machine 15 | . . . . 15 Destroy Structure 3 | . . . . 3 Partial Spotted 60 | . . . 30 30 Lose Combat Pursuer 210 | . . . 45 165 Influence Decreases 620 | . 57 140 150 273 Entered New Map 33 | . . . . 33 Time Decay 437 | . 57 140 120 120 Lost Part 150 | . . . 30 120 Squads Dispatched 2 | . . . 1 1 Investigation . | . . . . . Extermination . | . . . . . Reinforcement 2 | . . . 1 1 Assault . | . . . . . Garrison . | . . . . . Intercept . | . . . . . Searches Triggered . | . . . . . Construction Impeded . | . . . . . Haulers Reinforced . | . . . . . Active Scanning Responses . | . . . . . Cargo Convoy Interrupts . | . . . . . Stealth | -11 -10 -10 -9 -8 --------- Run | Yrd Mat Min Mat Mat Distress Signals 3 | . . . 1 2 Communications Jammed . | . . . . . Distress Signals . | . . . . . Times Spotted 62 | . 4 8 18 32 Peak Tracking Total 10 | . 2 3 6 10 Tactical Retreats 5 | . . . 1 4 Traps | -11 -10 -10 -9 -8 ------- Run | Yrd Mat Min Mat Mat Traps Triggered 2 | . . . 1 1 Indirectly . | . . . . . Trap Hack Attempts . | . . . . . Triggered . | . . . . . Disarmed . | . . . . . Reprogrammed . | . . . . . Reused . | . . . . . Traps Extracted . | . . . . . Installed . | . . . . . Triggered . | . . . . . Machines | -11 -10 -10 -9 -8 ---------- Run | Yrd Mat Min Mat Mat Machines Disabled 1 | . . . . 1 Max in Single Turn 1 | . . . . 1 Machines Repaired . | . . . . . Machines Dismantled . | . . . . . Machines Sabotaged . | . . . . . Overloaded Fab Kills . | . . . . . Hacking | -11 -10 -10 -9 -8 --------- Run | Yrd Mat Min Mat Mat Machines Accessed 1 | . 1 . . . Terminals 1 | . 1 . . . Fabricators . | . . . . . Repair Stations . | . . . . . Recycling Units . | . . . . . Scanalyzers . | . . . . . Garrison Access . | . . . . . Total Hacks 1 | . 1 . . . Successful 1 | . 1 . . . Failed . | . . . . . Catastrophic . | . . . . . Database Lockouts . | . . . . . Manual . | . . . . . Terminals 1 | . 1 . . . Fabricators . | . . . . . Repair Stations . | . . . . . Recycling Units . | . . . . . Scanalyzers . | . . . . . Garrison Access . | . . . . . Terminal Hacks 1 | . 1 . . . Registered Components 1 | . 1 . . . Fabricator Hacks . | . . . . . Repair Station Hacks . | . . . . . Recycling Unit Hacks . | . . . . . Scanalyzer . | . . . . . Garrison Access Hacks . | . . . . . Unauthorized Hacks . | . . . . . Terminals . | . . . . . Fabricators . | . . . . . Repair Stations . | . . . . . Recycling Units . | . . . . . Scanalyzers . | . . . . . Garrison Access . | . . . . . Data Cores Recovered . | . . . . . Used . | . . . . . Hacking Detections 1 | . 1 . . . Full Trace Events . | . . . . . Feedback Events . | . . . . . Feedback Blocked . | . . . . . Robot Schematics Acquired . | . . . . . Robots Built . | . . . . . Authchips . | . . . . . Time . | . . . . . Total Robot Build Rating . | . . . . . Part Schematics Acquired . | . . . . . Parts Built . | . . . . . Authchips . | . . . . . Time . | . . . . . Total Part Build Rating . | . . . . . Parts Repaired . | . . . . . Time . | . . . . . Parts Recycled . | . . . . . Recycled Matter . | . . . . . Retrieved Matter . | . . . . . Retrieved Components . | . . . . . Parts Scanalyzed . | . . . . . Part Schematics Acquired . | . . . . . Parts Damaged . | . . . . . Bothacking | -11 -10 -10 -9 -8 ------------ Run | Yrd Mat Min Mat Mat Used RIF Installer . | . . . . . Robots Hacked . | . . . . . Non-combat . | . . . . . Combat . | . . . . . Robot Hacks Applied . | . . . . . Relay Couplers Released . | . . . . . Fabnet Peak Effective % . | . . . . . Robots Rewired . | . . . . . Allies Hacked . | . . . . . Hacks Repelled . | . . . . . Allies | -11 -10 -10 -9 -8 -------- Run | Yrd Mat Min Mat Mat Total Allies . | . . . . . Largest Group . | . . . . . Highest-Rated Group . | . . . . . Highest-Rated Ally . | . . . . . Total Orders . | . . . . . Ally Attacks . | . . . . . Total Damage . | . . . . . Kills . | . . . . . Allies Corrupted . | . . . . . Allies Melted . | . . . . . Intel | -11 -10 -10 -9 -8 ------- Run | Yrd Mat Min Mat Mat Active Infowar (turns) 858 | . 59 511 222 66 Sensors 73 | . . . 7 66 Seismic 785 | . 59 511 215 . Robot Analysis Total . | . . . . . Derelict Logs Recovered 2 | . . 2 . . Drone Launches . | . . . . . Drone Recoveries . | . . . . . Exploration | -11 -10 -10 -9 -8 ------------- Run | Yrd Mat Min Mat Mat Turns Passed 1315 | 90 198 511 270 246 Spaces Moved 2301 | 71 182 1032 462 554 Core 11 | 7 2 . . 2 Treads . | . . . . . Legs 135 | 64 71 . . . Wheels . | . . . . . Hover 506 | . 109 397 . . Flight 1649 | . . 635 462 552 Fastest Speed 28 | 50 56 37 34 28 Average Speed 44 | 113 82 44 34 33 Slowest Speed 200 | 120 200 56 40 50 Overloaded Moves . | . . . . . Propulsion Burnouts . | . . . . . Robots Hopped 37 | . . 14 9 14 Potential Cave-ins . | . . . . . Cave-ins Triggered . | . . . . . Exploration Rate (%) 41 | 5 28 91 27 57 Regions Visited 4 Branch Regions 1 Pre-discovered Areas 1 | . . 1 . . Known Exits Taken 1 | . . . 1 . Unknown Exits Taken 3 | 1 1 1 . . Scrap Searched 2 | . . 2 . . Spaces Dug . | . . . . . Terrain Destroyed 3 | . . . . 3 Melee . | . . . . . Projectile 3 | . . . . 3 AOE . | . . . . . Terrain Rammed . | . . . . . Walls Destroyed . | . . . . . Machines Disabled . | . . . . . Actions | -11 -10 -10 -9 -8 --------- Run | Yrd Mat Min Mat Mat Total 2453 | 77 208 1053 530 585 Wait 65 | . 6 3 48 8 Move 2229 | 70 181 1005 446 527 Hop 31 | . . 12 6 13 Pick Up 15 | 1 5 4 2 3 Fast Attach 20 | 6 2 2 4 6 Attach 13 | . 1 3 2 7 Detach 6 | . 2 2 . 2 Swap 2 | . . 1 1 . Drop 14 | . . 9 2 3 Fire 58 | . 11 12 19 16 Melee . | . . . . . Ram . | . . . . . Kick . | . . . . . Crush . | . . . . . Escape Stasis . | . . . . . Rewire . | . . . . . Trap . | . . . . . Miscellaneous . | . . . . . Route ------- -11/Scrapyard -10/Materials -10/Mines (discovered 2 exits: [*Mat x2]) -9/Materials -8/Materials (discovered 1 exit: [*Fac]) History --------- Turn | Location | Event 4 | -11/Scrapyard | Discovered new exit (range 15) 91 | -11/Scrapyard | Entered Materials 235 | -10/Materials | Discovered new exit (range 16) 289 | -10/Materials | Entered Mines 299 | -10/Mines | Discovered new exit (range 16) 311 | -10/Mines | Build established: Mutant 334 | -10/Mines | Met a Derelict bent on vengeance 507 | -10/Mines | Learned location of Zion (-6) 543 | -10/Mines | Learned Materials garrison access intel 581 | -10/Mines | Discovered new exit (range 5) 675 | -10/Mines | A weapon hastily lodged in a ceiling crevice suddenly fell to the ground 800 | -10/Mines | Entered Materials 800 | -9/Materials | Evolved 2 slots: Propulsion x1, Utility x1 1066 | -9/Materials | Discovered new exit (range 3) 1070 | -9/Materials | Identified exit to Materials 1070 | -9/Materials | Entered another Materials area 1070 | -8/Materials | Evolved 2 slots: Propulsion x1, Utility x1 1071 | -8/Materials | Loaded intel: 1 garrison access location 1166 | -8/Materials | Lost 3 parts (3n) 1260 | -8/Materials | Discovered new exit (range 12) 1316 | -8/Materials | Self-destructed Last Messages --------------- 01287_ Acquired Surge Thruster. 01289_ U-05 Engineer lays Concrete. 01290_ K-01 Serf collects debris. 01290_ Flight Unit destroyed. 01291_ U-05 Engineer lays Concrete. 01292_ Critical hit (Burn: +37). 01293_ K-01 Serf collects debris. 01293_ U-05 Engineer lays Concrete. 01295_ Surge Thruster severed. 01296_ The unstable cave ceiling collapses. 01296_ U-05 Engineer lays Concrete. 01298_ Weight Redist. System destroyed. 01298_ Knocked back. 01298_ K-01 Serf knocked back. 01299_ K-01 Serf collects debris. 01299_ Knocked back. 01308_ Assault Cannon destroyed. 01313_ Surge Thruster destroyed. 01313_ Flight Unit destroyed. 01314_ Aerolev Unit severed. Map ----- +----------------------------------------------------+ | ?????????# # ##/ ] # "" ## """ #! | | ???##########+###### ######### ??# """ ##### | | ???# ]## ##### ##########+####?? #?### | | ???# """ # #####/#### = | | ???# """ ! + " + | | ???# """ # ##### #### | | ???# # #### ##### ######/###### #??### | | ???# ?# #?####/#####?# #??# + #????? | | ???# "" ""?# #?# #?# #??# """ # #????? | | ???# ""S"??# #?# #?# #??# """ #"#####? | | ???# """"??# #?# #?# #??# """ +%" +? | | ????####???# #?# #?# #??# #+#????? | | ??????????## ### #?# #??# #??????? | | +########## ## #?# #??# !!!#??????? | | "" ## #?? ???# !!!#??????? | | T + #?? ???# !! #??????? | | "" ## #??+???##########??????? | | ?" ####### ##+#####+##??????????????????????? | | ?"????????###/#### #???# #???????????????????????? | | ??????????# ## #???# #???????????????????????? | | ??????????# ]## #???# #???????????????????????? | | ??????????# ## #####+#####???????????????????? | | ??????????# """## # c #???????????????????? | | ??????????# """## # c= #???????????????????? | | ??????????# R"## # #???????????????????? | | ??????????# """## # @ #???????????????????? | | ??????????# ## # #???????????????????? | | ??????????### ## # #???????????????????? | | ??????????### ! # # #???????????????????? | | ??????????# ! # # #???????????????????? | | ??????????## # #####g#####???????????????????? | | ??????"""?# ! # g #?????????????????????? | | ???????G"?# !! #?????????????????????? | | ??????"""?#### gg #?????????????????????? | | ?????????????#!## #?????????????????????? | | ??????????????#### #?????????????????????? | | ?????????????????# #?????????????????????? | | ?????????????????# #?????????????????????? | | ?????????????????# ^ #?????????????????????? | | ?????????????????# #######???????????????? | | ?????????????????# = # #???????????????? | | ?????????????????# #???????????????? | | ?????????????????# T #???????????????? | | ?????????????????#! #???????????????? | | ???????????????##########+## #???????????????? | | ??????????###### ##????? ## #???????????????? | | ??????????# #?????|!!# ##???????????????? | | ??????????# """ #???? |!=# #???????????????? | | ??????????# "Y" #???? !! # ##???????????????? | | ??????????# ########### #???????????????? | +----------------------------------------------------+ Best States ------------- Heat Dissipation 31 Energy Generation 10 Energy Capacity 125 Matter Stores 300 Matter Capacity 300 Sight Range 16 Robot Scan Range 14 Terrain Scan Density 10 Additional Mass Support 6 Evasion (%) 64 Offensive Hacking 10 Item Schematics ----------------- None Robot Schematics ------------------ None Fabricated ------------ Nothing Repaired ---------- Nothing Alien Tech Used ----------------- None Achievements -------------- None Challenges ------------ None Game ------ Seed SalvageXenonPropulsion Manual? 0 Play Time 00:18:16 Cumulative 12.1 hours Start 2025.10.05 @ 20:35:08 End 2025.10.05 @ 20:51:32 Sessions 1 Manual Loads 0 Difficulty Rogue Special Mode None Game No. 37 Rogue 30 Adventurer 7 Explorer 0 Win Type - Total 0 Types 0/0/0/0/0/0/0/0/0/0 Lore% 3 Gallery% 15 Achievement% 14 Wizard Run 0 Options --------- Layout 1 ASCII 0 Keyboard 1 Movement Vi Keybinds 0 Fullscreen 1 Font 24/Smallcaps Map View 76x35 Zoom Use 0% Tactical HUD 1 Map Filters NONE Filters NONE Steam 1 RUN: c7529803-3c12-47a4-998a-d679a8d6d4d1